DepartmentFamily,Entity,Date,ExpenseType,ExpenseArea,Supplier,Transaction Number,Amount,Description,Supplier Type,VAT Registration Number
BEIS,The Insolvency Service,02/08/2021,Shared Service Costs - General Overhead,Finance & Commercial,Quadient UK Limited,300030669,3170.43,Postage,Large,
BEIS,The Insolvency Service,02/08/2021,Shared Service Costs - General Overhead,Finance & Commercial,Royal Mail (Redirection),300030681,1005,Postage,Large,
BEIS,The Insolvency Service,02/08/2021,LSD - Civil Litigation Disqualifications,Legal Services Division,Exchange Chambers,300030683,788.33,Civil Litigation Disqualifications Counsel Fees,SME,
BEIS,The Insolvency Service,02/08/2021,ORS - Ipswich & Cambridge,Official Receiver Services,Natural England,300030664,721.97,Postage,Public Sector,551065074
BEIS,The Insolvency Service,02/08/2021,LSD - Civil Litigation Disqualifications,Legal Services Division,18 St John Street Chambers,300030686,990,Civil Litigation Disqualifications Counsel Fees,SME,826858289
BEIS,The Insolvency Service,02/08/2021,LSD - Civil Litigation Disqualifications,Legal Services Division,Enterprise Chambers,300030680,1117.5,Civil Litigation Disqualifications Counsel Fees,SME,938136900
BEIS,The Insolvency Service,02/08/2021,LSD - Civil Litigation Disqualifications,Legal Services Division,Selbourne Chambers,300030682,1600,Civil Litigation Disqualifications Counsel Fees,SME,1036299146
BEIS,The Insolvency Service,02/08/2021,LSD - Criminal Prosecutions,Legal Services Division,15 Winckley Square,300030673,978.36,Costs of Criminal Prosecutions and Advice,,
BEIS,The Insolvency Service,02/08/2021,BSD - Customer Insight,Business Service Division,The Institute Of Customer Service,300030670,42000,Subscriptions,SME,688494561
BEIS,The Insolvency Service,03/08/2021,P&C - Learning & Talent DELA,People & Capability,KPMG LLP,300030420,800,Training,Large,791788859
BEIS,The Insolvency Service,03/08/2021,P&C - Learning & Talent DELA,People & Capability,KPMG LLP,300030483,2500,Training,Large,791788859
BEIS,The Insolvency Service,03/08/2021,Shared Service Costs � Direct Recharge,Finance & Commercial,SmartSourcing,300030184,21542.4,Outside IR35 Non Perm Resource,SME,788507869
BEIS,The Insolvency Service,03/08/2021,Shared Service Costs � Direct Recharge,Finance & Commercial,SmartSourcing,300030187,11643.46,Outside IR35 Non Perm Resource,SME,788507869
BEIS,The Insolvency Service,03/08/2021,Shared Service Costs � Direct Recharge,Finance & Commercial,SmartSourcing,300030203,15444,Outside IR35 Non Perm Resource,SME,788507869
BEIS,The Insolvency Service,03/08/2021,Shared Service Costs � Direct Recharge,Finance & Commercial,SmartSourcing,300030207,17820,Outside IR35 Non Perm Resource,SME,788507869
BEIS,The Insolvency Service,03/08/2021,DTS - Costs,Digital Technology Services,Equiniti ICS Ltd,300030247,40480,IT - Run,SME,
BEIS,The Insolvency Service,04/08/2021,BSD - Central Management Team (CMT),Business Service Division,KPMG,300030755,1251,Training,Large,
BEIS,The Insolvency Service,04/08/2021,P&C - HR Strategy,People & Capability,LNRS Data Services Limited,300030689,6823.2,Legal Costs Other,,730859520
BEIS,The Insolvency Service,04/08/2021,F&C - Accommodation Exeter,Finance & Commercial,Exeter City Council (Rates),300030757,51200,Rates,Public Sector,
BEIS,The Insolvency Service,04/08/2021,DTS - Costs,Digital Technology Services,Ricoh Uk Limited,300030667,20050.69,IT - Run,Large,
BEIS,The Insolvency Service,04/08/2021,BSD - Central Management Team (CMT),Business Service Division,KPMG LLP,300030758,1251,Training,Large,791788859
BEIS,The Insolvency Service,04/08/2021,LSD - Criminal Prosecutions,Legal Services Division,5 St Andrews Hill,300030762,7970.64,Costs of Criminal Prosecutions and Advice,SME,703074472
BEIS,The Insolvency Service,04/08/2021,F&C - Accommodation Plymouth,Finance & Commercial,Plymouth City Council (Rent),300030768,600,Rates,Public Sector,
BEIS,The Insolvency Service,04/08/2021,F&C - Accommodation Plymouth,Finance & Commercial,Plymouth City Council (Rent),300030769,1200,Rates,Public Sector,
BEIS,The Insolvency Service,04/08/2021,Shared Service Costs � Direct Recharge,Finance & Commercial,SmartSourcing,300030189,9438,Outside IR35 Non Perm Resource,SME,788507869
BEIS,The Insolvency Service,04/08/2021,Shared Service Costs � Direct Recharge,Finance & Commercial,SmartSourcing,300030204,3600,Outside IR35 Non Perm Resource,SME,788507869
BEIS,The Insolvency Service,04/08/2021,Shared Service Costs � Direct Recharge,Finance & Commercial,SmartSourcing,300030205,4992,Outside IR35 Non Perm Resource,SME,788507869
BEIS,The Insolvency Service,04/08/2021,Shared Service Costs � Direct Recharge,Finance & Commercial,SmartSourcing,300030206,3300,Outside IR35 Non Perm Resource,SME,788507869
BEIS,The Insolvency Service,04/08/2021,DTS - Costs,Digital Technology Services,Advanced 365 Limited,300030649,6506.84,IT - Run,Large,927547983
BEIS,The Insolvency Service,04/08/2021,CED - Change Delivery,Chief Executive Office,April Strategy LLP,300030756,56160,Consultancy,SME,927406420
BEIS,The Insolvency Service,04/08/2021,F&C - Accommodation Chatham,Finance & Commercial,Portal Chatham LLP,300030766,900,Landlord Service Charge,SME,933428619
BEIS,The Insolvency Service,05/08/2021,Shared Service Costs � Direct Recharge,Finance & Commercial,Banner Business Services Ltd,300030811,2132.02,Office supplies,Large,731860439
BEIS,The Insolvency Service,05/08/2021,LSD - Criminal Prosecutions,Legal Services Division,Grant Thornton,300030813,4422.3,Costs of Criminal Prosecutions and Advice,SME,835586102
BEIS,The Insolvency Service,05/08/2021,Shared Service Costs - General Overhead,Finance & Commercial,City Sprint Uk Ltd,300030819,2565.51,Courier,SME,997327364
BEIS,The Insolvency Service,05/08/2021,IES - Forensic Computing Unit,Investigations & Enforcement Services,Md5 Ltd,300030820,9972,Case Related Costs,SME,
BEIS,The Insolvency Service,05/08/2021,IES - Forensic Computing Unit,Investigations & Enforcement Services,Md5 Ltd,300030821,14570.4,Case Related Costs,SME,
BEIS,The Insolvency Service,05/08/2021,IES - Forensic Computing Unit,Investigations & Enforcement Services,Md5 Ltd,300030822,2139.1,Case Related Costs,SME,
BEIS,The Insolvency Service,05/08/2021,IES - Forensic Computing Unit,Investigations & Enforcement Services,Md5 Ltd,300030824,528,Case Related Costs,SME,
BEIS,The Insolvency Service,05/08/2021,IES - Forensic Computing Unit,Investigations & Enforcement Services,Md5 Ltd,300030825,811.03,Case Related Costs,SME,
BEIS,The Insolvency Service,05/08/2021,LSD - Criminal Prosecutions,Legal Services Division,Geoff Smith Associates Ltd,300030763,16560,IT - Refresh,SME,813047166
BEIS,The Insolvency Service,05/08/2021,Projects - Remedial Applications,Projects,Netcompany UK Ltd,300030075,9600,IT - Refresh,Large,171809009
BEIS,The Insolvency Service,05/08/2021,DTS - Costs,Digital Technology Services,Netcompany UK Ltd,300030803,27763.2,IT - Run,Large,171809009
BEIS,The Insolvency Service,05/08/2021,Shared Service Costs � Direct Recharge,Finance & Commercial,SmartSourcing,300030861,12600,Outside IR35 Non Perm Resource,SME,788507869
BEIS,The Insolvency Service,05/08/2021,ORS - Carillion Plc (in liquidation),Official Receiver Services,Crown Records Management,300030761,984.35,Storage - OR,SME,902181658
BEIS,The Insolvency Service,05/08/2021,LSD - Criminal Prosecutions,Legal Services Division,6 Kings Bench Walk,300030818,848,Costs of Criminal Prosecutions and Advice,SME,782714411
BEIS,The Insolvency Service,05/08/2021,F&C - Accommodation Blackpool,Finance & Commercial,Castle Water Limited,300030836,1185.46,Water,Large,319427788
BEIS,The Insolvency Service,05/08/2021,Projects,Projects,Red Snapper Recruitment,300030751,3240,Outside IR35 Non Perm Resource,SME,835435718
BEIS,The Insolvency Service,05/08/2021,Projects,Projects,Red Snapper Recruitment,300030752,4050,Outside IR35 Non Perm Resource,SME,835435718
BEIS,The Insolvency Service,05/08/2021,Projects,Projects,Red Snapper Recruitment,300030753,3300,Outside IR35 Non Perm Resource,SME,835435718
BEIS,The Insolvency Service,05/08/2021,Projects,Projects,Red Snapper Recruitment,300030754,4050,Outside IR35 Non Perm Resource,SME,835435718
BEIS,The Insolvency Service,05/08/2021,Projects,Projects,Red Snapper Recruitment,300030834,3300,Outside IR35 Non Perm Resource,SME,835435718
BEIS,The Insolvency Service,05/08/2021,Projects,Projects,Red Snapper Recruitment,300030842,3300,Outside IR35 Non Perm Resource,SME,835435718
BEIS,The Insolvency Service,05/08/2021,Projects,Projects,Red Snapper Recruitment,300030844,3300,Outside IR35 Non Perm Resource,SME,835435718
BEIS,The Insolvency Service,05/08/2021,Projects,Projects,Red Snapper Recruitment,300030848,3300,Outside IR35 Non Perm Resource,SME,835435718
BEIS,The Insolvency Service,05/08/2021,Projects,Projects,Red Snapper Recruitment,300030849,4050,Outside IR35 Non Perm Resource,SME,835435718
BEIS,The Insolvency Service,05/08/2021,Projects,Projects,Red Snapper Recruitment,300030851,4050,Outside IR35 Non Perm Resource,SME,835435718
BEIS,The Insolvency Service,05/08/2021,DTS - Costs,Digital Technology Services,NTT DATA UK LIMITED,300030814,11172,IT - Run,Large,159334590
BEIS,The Insolvency Service,05/08/2021,DTS - Costs,Digital Technology Services,NTT DATA UK LIMITED,300030833,37534.5,IT - Run,Large,159334590
BEIS,The Insolvency Service,05/08/2021,DTS - Costs,Digital Technology Services,e2e-assure Ltd,300030815,18632.1,IT - Run,SME,173116233
BEIS,The Insolvency Service,05/08/2021,BSD - RPS,Business Service Division,Randstad Solutions Ltd,300030672,1153.12,Agency Staff & Contractor Costs,Large,492435726
BEIS,The Insolvency Service,05/08/2021,DTS - Costs,Digital Technology Services,Ballicom Ltd,300030832,64902.6,IT - Run,SME,670007566
BEIS,The Insolvency Service,06/08/2021,CED - Channels & Communications,Chief Executive Office,Cision,300030890,637.8,Publications,Large,757158012
BEIS,The Insolvency Service,06/08/2021,CED - Channels & Communications,Chief Executive Office,Cision,300030891,645.6,Publications,Large,757158012
BEIS,The Insolvency Service,06/08/2021,CED - Channels & Communications,Chief Executive Office,Cision,300030892,767.4,Publications,Large,757158012
BEIS,The Insolvency Service,06/08/2021,CED - Channels & Communications,Chief Executive Office,Cision,300030893,1533.6,Publications,Large,757158012
BEIS,The Insolvency Service,06/08/2021,F&C - Accommodation Manchester,Finance & Commercial,Avison Young formerly GVA (Manchester),300030866,5025.6,Rent,Large,894545868
BEIS,The Insolvency Service,06/08/2021,DTS - Costs,Digital Technology Services,Symity LTD,300030864,4620,IT - Refresh,Large,192278875
BEIS,The Insolvency Service,06/08/2021,F&C - Accommodation Exeter,Finance & Commercial,Exeter City Council (Rent/Ins),300030889,1741.25,Rent,Public Sector,
BEIS,The Insolvency Service,06/08/2021,P&C - HR Operations,People & Capability,Edenred (UK Group) Ltd,300030846,30750,P&C - HR Operations,Large,649503520
BEIS,The Insolvency Service,06/08/2021,ORS - Director,Official Receiver Services,Controlaccount PLC,300030908,5941.92,Customer Research and Accreditation,SME,945758964
BEIS,The Insolvency Service,06/08/2021,ORS - Director,Official Receiver Services,Controlaccount PLC,300030909,5952,Customer Research and Accreditation,SME,945758964
BEIS,The Insolvency Service,06/08/2021,ORS - Director,Official Receiver Services,Controlaccount PLC,300030910,732,Customer Research and Accreditation,SME,945758964
BEIS,The Insolvency Service,06/08/2021,ORS - Director,Official Receiver Services,Controlaccount PLC,300030912,1398,Customer Research and Accreditation,SME,945758964
BEIS,The Insolvency Service,06/08/2021,ORS - Director,Official Receiver Services,Controlaccount PLC,300030913,648,Customer Research and Accreditation,SME,945758964
BEIS,The Insolvency Service,09/08/2021,P&C - Learning & Talent DELA,People & Capability,BPP Professional Education,300030767,2450,Training,Large,466451629
BEIS,The Insolvency Service,09/08/2021,LSD - Criminal Prosecutions,Legal Services Division,Police And Crime Commissioner For Hampshire,300030902,1215,Costs of Criminal Prosecutions and Advice,Public Sector,
BEIS,The Insolvency Service,09/08/2021,LSD - Criminal Prosecutions,Legal Services Division,18 Red Lion Court Chambers,300030898,777,Costs of Criminal Prosecutions and Advice,SME,766793665
BEIS,The Insolvency Service,09/08/2021,LSD - Criminal Prosecutions,Legal Services Division,18 Red Lion Court Chambers,300030899,9900,Costs of Criminal Prosecutions and Advice,SME,766793665
BEIS,The Insolvency Service,09/08/2021,Shared Service Costs � Direct Recharge,Finance & Commercial,SmartSourcing,300030900,15444,Outside IR35 Non Perm Resource,SME,788507869
BEIS,The Insolvency Service,09/08/2021,LSD - Civil Litigation Disqualifications,Legal Services Division,Selbourne Chambers,300030903,1033.33,Civil Litigation Disqualifications Counsel Fees,SME,1036299146
BEIS,The Insolvency Service,09/08/2021,LSD - Criminal Prosecutions,Legal Services Division,Walnut House Chambers,300030905,1164,Costs of Criminal Prosecutions and Advice,SME,898798511
BEIS,The Insolvency Service,10/08/2021,P&C - Diversity and Inclusion,People & Capability,Stonewall Equality Ltd,300029291,3000,Staff Subscriptions,SME,862906405
BEIS,The Insolvency Service,10/08/2021,F&C - Commercial,Finance & Commercial,ALEXANDER MANN SOLUTIONS,300030934,35399.88,Agency Staff & Contractor Costs,Large,7444926120
BEIS,The Insolvency Service,10/08/2021,ORS - Storage,Official Receiver Services,Oasis UK Ltd,300030930,755.22,Storage - OR,Large,931579211
BEIS,The Insolvency Service,10/08/2021,ORS - Storage,Official Receiver Services,Purdie Worldwide,300030806,961.71,Storage - OR,Large,208569880
BEIS,The Insolvency Service,10/08/2021,ORS - Director,Official Receiver Services,Maitland Chambers,300030932,5100,Legal Costs Other,SME,171817696
BEIS,The Insolvency Service,10/08/2021,F&C - Commercial,F&C - Commercial,ALEXANDER MANN SOLUTIONS,300030718,-528.34,Agency Staff & Contractor Costs,Large,7444926120
BEIS,The Insolvency Service,11/08/2021,LSD - Civil Litigation Disqualifications,Legal Services Division,Womble Bond Dickinson,300030964,1007.2,Recovery of Civil Proceedings Costs Awarded,Large,123392627
BEIS,The Insolvency Service,11/08/2021,LSD - Civil Litigation Disqualifications,Legal Services Division,Howes Percival,300030956,2403,Recovery of Civil Proceedings Costs Awarded,Large,119523573
BEIS,The Insolvency Service,11/08/2021,IES - Insolvent Investigations (South),Investigations & Enforcement Services,Howes Percival,300030978,10236,Solicitors Investigations,Large,119523573
BEIS,The Insolvency Service,11/08/2021,LSD - Civil Litigation Disqualifications,Legal Services Division,Shepherd & Wedderburn Ws (Scottish Cases),300030960,11157.83,Recovery of Civil Proceedings Costs Awarded,Large,125425142
BEIS,The Insolvency Service,11/08/2021,LSD - Civil Litigation Disqualifications,Legal Services Division,Gowling Wragge Lawrence Graham  & Co,300030955,7587.7,Recovery of Civil Proceedings Costs Awarded,SME,858698838
BEIS,The Insolvency Service,11/08/2021,LSD - Civil Litigation Disqualifications,Legal Services Division,Gowling Wragge Lawrence Graham  & Co,300030980,5412.5,Costs of Civil Litigation Disqualifications,SME,858698838
BEIS,The Insolvency Service,11/08/2021,LSD - Civil Litigation Disqualifications,Legal Services Division,Burness Paull & Williamsons Solicitors,300030953,2396.05,Recovery of Civil Proceedings Costs Awarded,Large,216218532
BEIS,The Insolvency Service,11/08/2021,IES - Business Delivery Team,Investigations & Enforcement Services,Burness Paull & Williamsons Solicitors,300030981,807.5,Solicitors Investigations,Large,216218532
BEIS,The Insolvency Service,11/08/2021,LSD - Civil Litigation Disqualifications,Legal Services Division,Shepherd & Wedderburn Ws ,300030962,1781.73,Recovery of Civil Proceedings Costs Awarded,Large,890559386
BEIS,The Insolvency Service,11/08/2021,LSD - Civil Litigation Disqualifications,Legal Services Division,Tlt Llp,300030925,2433.4,Recovery of Civil Proceedings Costs Awarded,Large,3574583240
BEIS,The Insolvency Service,11/08/2021,LSD - Civil Litigation Disqualifications,Legal Services Division,Tlt Llp,300030925,1292.4,Recovery of Civil Proceedings Costs Awarded,Large,3574583240
BEIS,The Insolvency Service,11/08/2021,LSD - Civil Litigation Disqualifications,Legal Services Division,Tlt Llp,300030976,9060.14,Costs of Civil Litigation Disqualifications,Large,3574583240
BEIS,The Insolvency Service,11/08/2021,LSD - Civil Litigation Disqualifications,Legal Services Division,Tlt Llp,300030977,2277.4,Costs of Civil Litigation Disqualifications,Large,3574583240
BEIS,The Insolvency Service,11/08/2021,Shared Service Costs � Direct Recharge,Finance & Commercial,SmartSourcing,300029694,19872,Outside IR35 Non Perm Resource,SME,788507869
BEIS,The Insolvency Service,11/08/2021,IES - Forensic Computing Unit,Investigations & Enforcement Services,SmartSourcing,300030326,13009.92,Outside IR35 Non Perm Resource,SME,788507869
BEIS,The Insolvency Service,11/08/2021,IES - Forensic Computing Unit,Investigations & Enforcement Services,SmartSourcing,300030327,9438,Outside IR35 Non Perm Resource,SME,788507869
BEIS,The Insolvency Service,11/08/2021,Shared Service Costs � Direct Recharge,Finance & Commercial,SmartSourcing,300030963,10692,Outside IR35 Non Perm Resource,SME,788507869
BEIS,The Insolvency Service,11/08/2021,Shared Service Costs � Direct Recharge,Finance & Commercial,SmartSourcing,300030965,11400,Outside IR35 Non Perm Resource,SME,788507869
BEIS,The Insolvency Service,11/08/2021,Shared Service Costs � Direct Recharge,Finance & Commercial,SmartSourcing,300030966,21542.4,Outside IR35 Non Perm Resource,SME,788507869
BEIS,The Insolvency Service,11/08/2021,Shared Service Costs � Direct Recharge,Finance & Commercial,SmartSourcing,300030967,13332,Outside IR35 Non Perm Resource,SME,788507869
BEIS,The Insolvency Service,11/08/2021,Shared Service Costs � Direct Recharge,Finance & Commercial,SmartSourcing,300030968,14250,Outside IR35 Non Perm Resource,SME,788507869
BEIS,The Insolvency Service,11/08/2021,Shared Service Costs � Direct Recharge,Finance & Commercial,SmartSourcing,300030971,15972,Outside IR35 Non Perm Resource,SME,788507869
BEIS,The Insolvency Service,11/08/2021,Shared Service Costs � Direct Recharge,Finance & Commercial,SmartSourcing,300030972,17820,Outside IR35 Non Perm Resource,SME,788507869
BEIS,The Insolvency Service,11/08/2021,IES - Insolvent Investigations (South),Investigations & Enforcement Services,Mills & Reeve LLP,300030959,12581.8,Solicitors Investigations,Large,104834588
BEIS,The Insolvency Service,11/08/2021,IES - Business Delivery Team,Investigations & Enforcement Services,Head Light Limited,300031020,2800,IT - Transform,SME,846259792
BEIS,The Insolvency Service,11/08/2021,Shared Service Costs � Direct Recharge,Finance & Commercial,PSL Print Management Ltd,300030973,6454.22,Printing and Reprographics,Large,448293129
BEIS,The Insolvency Service,11/08/2021,Shared Service Costs � Direct Recharge,Finance & Commercial,PSL Print Management Ltd,300030974,3640.55,Printing and Reprographics,Large,448293129
BEIS,The Insolvency Service,11/08/2021,F&C - Accommodation Birkenhead,F&C - Accommodation Birkenhead,HM Land Registry (F&C - Estates),300029863,-4319.24,Rent,Public Sector,
BEIS,The Insolvency Service,12/08/2021,F&C - Accommodation Birkenhead,Finance & Commercial,HM Land Registry (F&C - Estates),300029975,699.9,Rent,Public Sector,
BEIS,The Insolvency Service,12/08/2021,LSD - Civil Litigation Disqualifications,Legal Services Division,Womble Bond Dickinson,300031004,37101.25,Costs of Civil Litigation Disqualifications,Large,123392627
BEIS,The Insolvency Service,12/08/2021,LSD - Civil Litigation Disqualifications,Legal Services Division,Womble Bond Dickinson,300031006,15561.62,Costs of Civil Litigation Disqualifications,Large,123392627
BEIS,The Insolvency Service,12/08/2021,P&C - Learning & Talent DELA,People & Capability,BPP Professional Education,300031016,800,Training,Large,466451629
BEIS,The Insolvency Service,12/08/2021,DTS - Costs,Digital Technology Services,Experian Ltd,300031067,9783.6,IT - Run,Large,887133593
BEIS,The Insolvency Service,12/08/2021,DTS - Costs,Digital Technology Services,Experian Ltd,300031068,2101.9,IT - Run,Large,887133593
BEIS,The Insolvency Service,12/08/2021,F&C - Accommodation General,Finance & Commercial,GPA (C/O Montagu Evans LLP),300030998,10499.81,Property Maintenance - CS1,Large,
BEIS,The Insolvency Service,12/08/2021,F&C - Accommodation General,Finance & Commercial,GPA (C/O Montagu Evans LLP),300030999,15959.82,Property Maintenance - CS1,Large,
BEIS,The Insolvency Service,12/08/2021,DTS - Costs,Digital Technology Services,Ee Ltd (Air Time),300031059,953.1,Telephones - Charges,Large,771592016
BEIS,The Insolvency Service,12/08/2021,DTS - Costs,Digital Technology Services,Ee Ltd (Air Time),300031060,22008.22,Telephones - Charges,Large,771592016
BEIS,The Insolvency Service,12/08/2021,F&C - Accommodation Edinburgh,Finance & Commercial,The Scottish Government,300030997,15442,Rent,Public Sector,
BEIS,The Insolvency Service,12/08/2021,LSD - Criminal Prosecutions,Legal Services Division,18 Red Lion Court Chambers,300031053,1491.5,Costs of Criminal Prosecutions and Advice,SME,766793665
BEIS,The Insolvency Service,12/08/2021,DTS - Costs,Digital Technology Services,Insight Direct (UK) Ltd,300030772,725.96,IT - Run,Large,746075129
BEIS,The Insolvency Service,12/08/2021,DTS - Costs,Digital Technology Services,Insight Direct (UK) Ltd,300030774,725.96,IT - Run,Large,746075129
BEIS,The Insolvency Service,12/08/2021,DTS - Costs,Digital Technology Services,Insight Direct (UK) Ltd,300030779,725.96,IT - Run,Large,746075129
BEIS,The Insolvency Service,12/08/2021,DTS - Costs,Digital Technology Services,Insight Direct (UK) Ltd,300030781,725.96,IT - Run,Large,746075129
BEIS,The Insolvency Service,12/08/2021,DTS - Costs,Digital Technology Services,Insight Direct (UK) Ltd,300030782,725.96,IT - Run,Large,746075129
BEIS,The Insolvency Service,12/08/2021,DTS - Costs,Digital Technology Services,Insight Direct (UK) Ltd,300030783,725.96,IT - Run,Large,746075129
BEIS,The Insolvency Service,12/08/2021,DTS - Costs,Digital Technology Services,Insight Direct (UK) Ltd,300030784,1941.96,IT - Run,Large,746075129
BEIS,The Insolvency Service,12/08/2021,DTS - Costs,Digital Technology Services,Insight Direct (UK) Ltd,300030827,3660.38,IT - Run,Large,746075129
BEIS,The Insolvency Service,12/08/2021,DTS - Costs,Digital Technology Services,Insight Direct (UK) Ltd,300030829,1299.08,IT - Run,Large,746075129
BEIS,The Insolvency Service,12/08/2021,LSD - Civil Litigation Disqualifications,Legal Services Division,Selbourne Chambers,300031019,639.98,Civil Litigation Disqualifications Counsel Fees,SME,1036299146
BEIS,The Insolvency Service,12/08/2021,DTS - Costs,DTS - Costs,Insight Direct (UK) Ltd,300030771,-725.96,IT - Run,Large,746075129
BEIS,The Insolvency Service,12/08/2021,DTS - Costs,DTS - Costs,Insight Direct (UK) Ltd,300030773,-725.96,IT - Run,Large,746075129
BEIS,The Insolvency Service,12/08/2021,DTS - Costs,DTS - Costs,Insight Direct (UK) Ltd,300030775,-725.96,IT - Run,Large,746075129
BEIS,The Insolvency Service,12/08/2021,DTS - Costs,DTS - Costs,Insight Direct (UK) Ltd,300030785,-725.96,IT - Run,Large,746075129
BEIS,The Insolvency Service,12/08/2021,DTS - Costs,DTS - Costs,Insight Direct (UK) Ltd,300030786,-725.96,IT - Run,Large,746075129
BEIS,The Insolvency Service,12/08/2021,DTS - Costs,DTS - Costs,Insight Direct (UK) Ltd,300030787,-1941.96,IT - Run,Large,746075129
BEIS,The Insolvency Service,12/08/2021,DTS - Costs,DTS - Costs,Insight Direct (UK) Ltd,300030788,-725.96,IT - Run,Large,746075129
BEIS,The Insolvency Service,12/08/2021,DTS - Costs,DTS - Costs,Insight Direct (UK) Ltd,300030826,-3684.49,IT - Run,Large,746075129
BEIS,The Insolvency Service,12/08/2021,DTS - Costs,DTS - Costs,Insight Direct (UK) Ltd,300030828,-1299.08,IT - Run,Large,746075129
BEIS,The Insolvency Service,13/08/2021,ORS - Outsourced Investigations,Official Receiver Services,Womble Bond Dickinson,300031061,764.82,INV (OR) Solicitor Drafting Costs,Large,123392627
BEIS,The Insolvency Service,13/08/2021,IES - Insolvent Investigations (South),Investigations & Enforcement Services,Gowling Wragge Lawrence Graham  & Co,300031062,20314.7,Solicitors Investigations,SME,858698838
BEIS,The Insolvency Service,13/08/2021,Shared Service Costs - General Overhead,Finance & Commercial,Restore Datashred (Data Solutions 2016 Ltd T/A Restore Data),300031017,746.17,Confidential Waste,Large,240193143
BEIS,The Insolvency Service,13/08/2021,DTS - EAS - BAU,Digital Technology Services,Unit4 Business Software Ltd,300030894,43702.66,IT - Run,Large,567554796
BEIS,The Insolvency Service,13/08/2021,F&C - Accommodation Edinburgh,Finance & Commercial,The Scottish Government,300031033,2083.3,Landlord Service Charge,Public Sector,
BEIS,The Insolvency Service,13/08/2021,F&C - Accommodation Edinburgh,Finance & Commercial,The Scottish Government,300031033,1346.38,Landlord Service Charge,Public Sector,
BEIS,The Insolvency Service,13/08/2021,F&C - Accommodation Edinburgh,Finance & Commercial,The Scottish Government,300031033,2799.59,Electricity,Public Sector,
BEIS,The Insolvency Service,13/08/2021,F&C - Accommodation Edinburgh,Finance & Commercial,The Scottish Government,300031033,16832.95,Rates,Public Sector,
BEIS,The Insolvency Service,13/08/2021,BSD - Customer Insight,Business Service Division,Syntec Ltd,300030382,548.76,Telephones - Charges,SME,264618586
BEIS,The Insolvency Service,13/08/2021,P&C - Learning & Talent DELA,People & Capability,KPMG LLP,300031100,1940.1,Training,Large,791788859
BEIS,The Insolvency Service,13/08/2021,LSD - Civil Litigation Winding Up,Legal Services Division,Tlt Llp,300031063,8659.05,Costs of Civil Litigation Winding Up,Large,3574583240
BEIS,The Insolvency Service,13/08/2021,LSD - Civil Litigation Winding Up,Legal Services Division,Tlt Llp,300031099,7133.91,Costs of Civil Litigation Winding Up,Large,3574583240
BEIS,The Insolvency Service,13/08/2021,F&C - Commercial,Finance & Commercial,In-tend Ltd,300031096,2995,IT - Run,SME,886416779
BEIS,The Insolvency Service,13/08/2021,DTS - Staff Costs,Digital Technology Services,Coeus Consulting LTD,300031054,1400,Training,SME,156977749
BEIS,The Insolvency Service,13/08/2021,F&C - CFO office,Finance & Commercial,Robertson Bell Ltd,300031072,2934.12,Agency Staff & Contractor Costs,SME,913325843
BEIS,The Insolvency Service,13/08/2021,F&C - CFO office,Finance & Commercial,Robertson Bell Ltd,300031074,2934.12,Agency Staff & Contractor Costs,SME,913325843
BEIS,The Insolvency Service,13/08/2021,F&C - CFO office,Finance & Commercial,Robertson Bell Ltd,300031075,2934.12,Agency Staff & Contractor Costs,SME,913325843
BEIS,The Insolvency Service,13/08/2021,LSD - Civil Litigation Disqualifications,Legal Services Division,9 Stone Buildings,300031109,520,Civil Litigation Disqualifications Counsel Fees,SME,277586642
BEIS,The Insolvency Service,13/08/2021,P&C - HR Operations,People & Capability,Health Assurred Limited,300031066,597.3,Staff Welfare,SME,927524217
BEIS,The Insolvency Service,16/08/2021,ORS - Director,Official Receiver Services,Insolvency Service,300031130,580,"Fruitless, ex-Gratia and Compensation Payment",Public Sector,
BEIS,The Insolvency Service,16/08/2021,LSD - Civil Litigation Disqualifications,Legal Services Division,Womble Bond Dickinson,300031110,10353.25,HR & Payroll Costs,Large,123392627
BEIS,The Insolvency Service,16/08/2021,P&C - HR Strategy,People & Capability,KPMG,300030863,854,Training,Large,
BEIS,The Insolvency Service,16/08/2021,LSD - Civil Litigation Disqualifications,Legal Services Division,Burness Paull & Williamsons Solicitors,300031064,5221.5,Costs of Civil Litigation Disqualifications,Large,216218532
BEIS,The Insolvency Service,16/08/2021,DTS - Costs,Digital Technology Services,Daisy Corporate Services Trading Limited,300031160,19804.73,IT - Run,Large,722471355
BEIS,The Insolvency Service,16/08/2021,LSD - Civil Litigation Disqualifications,Legal Services Division,Shepherd & Wedderburn Ws,300031065,1753.67,Costs of Civil Litigation Disqualifications,Large,890559386
BEIS,The Insolvency Service,16/08/2021,IES - Business Delivery Team,Investigations & Enforcement Services,Mendip Media Group Ltd (Now Trading As Appen) - (Transcri),300031166,592.68,Case Related Costs,SME,609546425
BEIS,The Insolvency Service,16/08/2021,DTS - CET - BAU,Digital Technology Services,Geoff Smith Associates Ltd,300031146,33120,IT - Run,SME,813047166
BEIS,The Insolvency Service,16/08/2021,IES - Insolvent Investigations (South),Investigations & Enforcement Services,Tlt Llp,300031138,18666,Solicitors Investigations,Large,3574583240
BEIS,The Insolvency Service,16/08/2021,IES - Forensic Computing Unit,Investigations & Enforcement Services,Dell Corporation Limited,300031153,1284,Case Related Costs,Large,635823528
BEIS,The Insolvency Service,16/08/2021,P&C - HR Operations,People & Capability,Duradiamond Healthcare Limited,300031058,2340.35,Staff Welfare,Large,806426440
BEIS,The Insolvency Service,16/08/2021,Shared Service Costs � Direct Recharge,Finance & Commercial,SmartSourcing,300031001,8100,Outside IR35 Non Perm Resource,SME,788507869
BEIS,The Insolvency Service,16/08/2021,Shared Service Costs � Direct Recharge,Finance & Commercial,SmartSourcing,300031003,15246,Outside IR35 Non Perm Resource,SME,788507869
BEIS,The Insolvency Service,16/08/2021,Shared Service Costs � Direct Recharge,Finance & Commercial,SmartSourcing,300031005,3450,Outside IR35 Non Perm Resource,SME,788507869
BEIS,The Insolvency Service,16/08/2021,Shared Service Costs � Direct Recharge,Finance & Commercial,SmartSourcing,300031007,13860,Outside IR35 Non Perm Resource,SME,788507869
BEIS,The Insolvency Service,16/08/2021,Shared Service Costs � Direct Recharge,Finance & Commercial,SmartSourcing,300031008,8550,Outside IR35 Non Perm Resource,SME,788507869
BEIS,The Insolvency Service,16/08/2021,Shared Service Costs � Direct Recharge,Finance & Commercial,SmartSourcing,300031009,4200,Outside IR35 Non Perm Resource,SME,788507869
BEIS,The Insolvency Service,16/08/2021,Shared Service Costs � Direct Recharge,Finance & Commercial,SmartSourcing,300031011,18744,Outside IR35 Non Perm Resource,SME,788507869
BEIS,The Insolvency Service,16/08/2021,Shared Service Costs � Direct Recharge,Finance & Commercial,SmartSourcing,300031048,11643.46,Outside IR35 Non Perm Resource,SME,788507869
BEIS,The Insolvency Service,16/08/2021,LSD - Civil Litigation Disqualifications,Legal Services Division,Mills & Reeve LLP,300031167,4552.2,Costs of Civil Litigation Disqualifications,Large,104834588
BEIS,The Insolvency Service,16/08/2021,F&C - Accommodation Brighton,Finance & Commercial,Cross Stone Estates Limited,300031169,1813.51,Rent,SME,783680883
BEIS,The Insolvency Service,16/08/2021,F&C - Accommodation Brighton,Finance & Commercial,Cross Stone Estates Limited,300031170,12258,Rent,SME,783680883
BEIS,The Insolvency Service,16/08/2021,BSD - RPS,Business Service Division,Randstad Solutions Ltd,300030907,1161.78,Agency Staff & Contractor Costs,Large,492435726
BEIS,The Insolvency Service,17/08/2021,ORS -Solicitor Drafting Costs,Official Receiver Services,Womble Bond Dickinson,300031049,13191.42,INV (OR) Solicitor Drafting Costs,Large,123392627
BEIS,The Insolvency Service,17/08/2021,P&C - HR Operations,People & Capability,Health Management Ltd,300030770,555.55,Staff Welfare,Large,792250621
BEIS,The Insolvency Service,17/08/2021,Projects - Estates 2020,Projects,GPA (C/O Montagu Evans LLP),300031094,13432.86,Estates Professional Services,Large,
BEIS,The Insolvency Service,17/08/2021,LSD - Criminal Prosecutions,Legal Services Division,5 St Andrews Hill,300031111,5675.04,Costs of Criminal Prosecutions and Advice,SME,703074472
BEIS,The Insolvency Service,17/08/2021,BSD - Customer Insight,Business Service Division,SmartSurvey Ltd,300031000,10680,Customer Research and Accreditation,SME,840574625
BEIS,The Insolvency Service,17/08/2021,ORS - Storage,Official Receiver Services,AlixPartners UK LLP,300031194,7381.5,Storage - OR,SME,100165871
BEIS,The Insolvency Service,17/08/2021,P&C - HR Operations,People & Capability,Health Assurred Limited,300031187,597.3,Staff Welfare,SME,927524217
BEIS,The Insolvency Service,18/08/2021,ORS - Director,Official Receiver Services,Sirs (Europe) Ltd,300031210,613.68,Financial Searches,SME,990834974
BEIS,The Insolvency Service,18/08/2021,ORS - Storage,Official Receiver Services,Ukcloud Ltd,300030862,11551.73,Storage - OR,SME,172647982
BEIS,The Insolvency Service,18/08/2021,LSD - Civil Litigation Disqualifications,Legal Services Division,St Philips Barristers,300031190,935,Civil Litigation Disqualifications Counsel Fees,SME,614053968
BEIS,The Insolvency Service,18/08/2021,LSD - Civil Litigation Disqualifications,Legal Services Division,St Philips Barristers,300031192,1375,Civil Litigation Disqualifications Counsel Fees,SME,614053968
BEIS,The Insolvency Service,18/08/2021,IES/LSD - ARIS,Investigations & Enforcement Services/Legal Services Division,SUNDRY SUPPLIER,300031200,1481.64,Case Related Costs,,
BEIS,The Insolvency Service,18/08/2021,DTS - Costs,Digital Technology Services,Netcompany UK Ltd,300030801,16498.8,IT - Run,Large,171809009
BEIS,The Insolvency Service,18/08/2021,DTS - Costs,Digital Technology Services,Netcompany UK Ltd,300030802,3048,IT - Run,Large,171809009
BEIS,The Insolvency Service,18/08/2021,Shared Service Costs � Direct Recharge,Finance & Commercial,SmartSourcing,300031203,13009.92,Outside IR35 Non Perm Resource,SME,788507869
BEIS,The Insolvency Service,18/08/2021,Shared Service Costs - General Overhead,Finance & Commercial,Royal Mail,300031189,1005,Postage,Large,243170002
BEIS,The Insolvency Service,18/08/2021,LSD - Civil Litigation Disqualifications,Legal Services Division,18 St John Street Chambers,300031113,3060,Civil Litigation Disqualifications Counsel Fees,SME,826858289
BEIS,The Insolvency Service,18/08/2021,DTS - Costs,Digital Technology Services,Gamma Telecom Limited,300031056,1619.57,Telephones - Charges,Large,823820344
BEIS,The Insolvency Service,18/08/2021,P&C - HR Operations,People & Capability,Edenred (UK Group) Ltd,300031193,775,Cycle to Work Scheme (NET nil impact),Large,649503520
BEIS,The Insolvency Service,20/08/2021,ORS - Director,Official Receiver Services,Insolvency Service,300031275,6817.87,"Fruitless, ex-Gratia and Compensation Payment",Public Sector,
BEIS,The Insolvency Service,20/08/2021,P&C - HR Operations,People & Capability,Government Legal Department,300031262,2597.7,Legal Costs Other,Public Sector,888823066
BEIS,The Insolvency Service,20/08/2021,P&C - HR Operations,People & Capability,Government Legal Department,300031263,2557.2,Legal Costs Other,Public Sector,888823066
BEIS,The Insolvency Service,20/08/2021,P&C - HR Operations,People & Capability,Government Legal Department,300031283,871.4,Legal Costs Other,Public Sector,888823066
BEIS,The Insolvency Service,20/08/2021,P&C - HR Operations,People & Capability,Uksbs Shared Services Centre Ltd,300031251,73416.66,HR & Payroll Costs,Large,888825550
BEIS,The Insolvency Service,20/08/2021,ORS - Storage,Official Receiver Services,Ukcloud Ltd,300030759,25395.5,Storage - OR,SME,172647982
BEIS,The Insolvency Service,20/08/2021,IES - Business Delivery Team,Investigations & Enforcement Services,National Crime Agency,300031186,725,Staff Subscriptions,Public Sector,888849824
BEIS,The Insolvency Service,20/08/2021,IES - Business Delivery Team,Investigations & Enforcement Services,NAFN Data and Intelligence Services,300031231,654.5,Case Related Costs,SME,149193544
BEIS,The Insolvency Service,20/08/2021,F&C - Accommodation Ipswich,Finance & Commercial,Ipswich Borough Council,300031207,27136,Rates,Large,
BEIS,The Insolvency Service,20/08/2021,F&C - Accommodation Ipswich,Finance & Commercial,Ipswich Borough Council,300031208,5427.2,Rates,Large,
BEIS,The Insolvency Service,23/08/2021,P&C - HR Operations,People & Capability,Government Legal Department,300031268,666.6,Legal Costs Other,Public Sector,888823066
BEIS,The Insolvency Service,23/08/2021,P&C - HR Operations,People & Capability,Government Legal Department,300031271,6002.45,Legal Costs Other,Public Sector,888823066
BEIS,The Insolvency Service,23/08/2021,P&C - HR Operations,People & Capability,Government Legal Department,300031272,707.2,Legal Costs Other,Public Sector,888823066
BEIS,The Insolvency Service,23/08/2021,P&C - HR Operations,People & Capability,Government Legal Department,300031273,2636.6,Legal Costs Other,Public Sector,888823066
BEIS,The Insolvency Service,23/08/2021,P&C - HR Operations,People & Capability,Government Legal Department,300031274,801.4,Legal Costs Other,Public Sector,888823066
BEIS,The Insolvency Service,23/08/2021,P&C - HR Operations,People & Capability,Government Legal Department,300031284,3180.8,Legal Costs Other,Public Sector,888823066
BEIS,The Insolvency Service,23/08/2021,P&C - HR Operations,People & Capability,Government Legal Department,300031285,1148.4,Legal Costs Other,Public Sector,888823066
BEIS,The Insolvency Service,23/08/2021,F&C - Accommodation Birmingham,Finance & Commercial,Jones Lang Lasalle (Amas Ltd) - (Rent & Property Costs),300031281,218357.89,Rent,Large,
BEIS,The Insolvency Service,23/08/2021,F&C - Accommodation London,Finance & Commercial,Cbre Limited,300031289,276821.1,Rent,Large,
BEIS,The Insolvency Service,23/08/2021,F&C - Accommodation London,Finance & Commercial,Cbre Limited,300031290,69362.94,Landlord Service Charge,Large,
BEIS,The Insolvency Service,23/08/2021,LSD - Criminal Prosecutions,Legal Services Division,Albion Chambers,300031295,708.36,Costs of Criminal Prosecutions and Advice,Large,822187438
BEIS,The Insolvency Service,23/08/2021,LSD - Civil Litigation Disqualifications,Legal Services Division,18 St John Street Chambers,300031277,880,Civil Litigation Disqualifications Counsel Fees,SME,826858289
BEIS,The Insolvency Service,23/08/2021,LSD - Civil Litigation Disqualifications,Legal Services Division,18 St John Street Chambers,300031278,540,Civil Litigation Disqualifications Counsel Fees,SME,826858289
BEIS,The Insolvency Service,23/08/2021,F&C - Accommodation London,F&C - Accommodation London,Cbre Limited,300030717,-2359.02,Rent,Large,
BEIS,The Insolvency Service,24/08/2021,DTS - EAS - BAU,Digital Technology Services,Hague Computer Supplies,300031201,510,IT - Run,SME,333613774
BEIS,The Insolvency Service,24/08/2021,Shared Service Costs � Direct Recharge,Finance & Commercial,SmartSourcing,300031304,13728,Outside IR35 Non Perm Resource,SME,788507869
BEIS,The Insolvency Service,25/08/2021,P&C - HR Operations,People & Capability,Uksbs Shared Services Centre Ltd,300031314,73416.66,HR & Payroll Costs,Large,888825550
BEIS,The Insolvency Service,25/08/2021,BSD - Customer Insight,Business Service Division,Syntec Ltd,300031082,589.61,IT - Run,SME,264618586
BEIS,The Insolvency Service,25/08/2021,LSD - Civil Litigation Disqualifications,Legal Services Division,Kings Chambers Limited,300031315,880,Civil Litigation Disqualifications Counsel Fees,SME,
BEIS,The Insolvency Service,26/08/2021,ORS - Director,Official Receiver Services,Insolvency Service,300031334,580,"Fruitless, ex-Gratia and Compensation Payment",Public Sector,
BEIS,The Insolvency Service,26/08/2021,ORS - Director,Official Receiver Services,Insolvency Service,300031335,580,"Fruitless, ex-Gratia and Compensation Payment",Public Sector,
BEIS,The Insolvency Service,26/08/2021,F&C - Accommodation Southend,Finance & Commercial,HMRC (Office Space),300031371,18158.79,Rent,Large,888848141
BEIS,The Insolvency Service,26/08/2021,DTS - Costs,Digital Technology Services,Insight Direct (UK) Ltd,300031318,15671.09,IT - Run,Large,746075129
BEIS,The Insolvency Service,26/08/2021,LSD - Civil Litigation Disqualifications,Legal Services Division,18 St John Street Chambers,300031317,540,Civil Litigation Disqualifications Counsel Fees,SME,826858289
BEIS,The Insolvency Service,26/08/2021,ORS - Director,Official Receiver Services,Maitland Chambers,300031363,2346,Legal Costs Other,SME,171817696
BEIS,The Insolvency Service,26/08/2021,F&C - CFO office,Finance & Commercial,Robertson Bell Ltd,300031354,2934.12,Agency Staff & Contractor Costs,SME,913325843
BEIS,The Insolvency Service,27/08/2021,DTS - EAS - BAU,Digital Technology Services,Bottomline Technologies,300031321,738.53,IT - Run,Large,724548231
BEIS,The Insolvency Service,27/08/2021,P&C - Learning & Talent DELA,People & Capability,KPMG,300031233,4311,Training,Large,
BEIS,The Insolvency Service,27/08/2021,F&C - Accommodation General,Finance & Commercial,GPA (C/O Montagu Evans LLP),300031369,2138.86,Property Maintenance - CS2,Large,
BEIS,The Insolvency Service,27/08/2021,F&C - Accommodation General,Finance & Commercial,GPA (C/O Montagu Evans LLP),300031373,8270.27,Property Maintenance - CS2,Large,
BEIS,The Insolvency Service,27/08/2021,F&C - Accommodation General,Finance & Commercial,GPA (C/O Montagu Evans LLP),300031405,70726.45,Property Maintenance - CS1,Large,
BEIS,The Insolvency Service,27/08/2021,F&C - Accommodation General,Finance & Commercial,GPA (C/O Montagu Evans LLP),300031406,8122.1,Property Maintenance - CS2,Large,
BEIS,The Insolvency Service,27/08/2021,DTS - Costs,Digital Technology Services,Nomensa Limited,300030901,424950,IT - Run,Large,771727411
BEIS,The Insolvency Service,27/08/2021,DTS - Costs,Digital Technology Services,Equiniti ICS Ltd,300030928,40480,IT - Run,SME,
BEIS,The Insolvency Service,31/08/2021,DTS - Costs,Digital Technology Services,Bt Telephone Payment Centre,300031454,9457.61,IT - Run,Large,245719348
BEIS,The Insolvency Service,31/08/2021,ORS - Storage,Official Receiver Services,Restore Datashred (Data Solutions 2016 Ltd T/A Restore Data),300030933,7556.91,Storage - OR,Large,240193143
BEIS,The Insolvency Service,31/08/2021,LSD � Civil Litigation Disqualifications,Legal Services Division,Pricewaterhouse Coopers LLP,300031404,43986,Costs of Civil Litigation Disqualifications,Large,243823957
BEIS,The Insolvency Service,31/08/2021,Projects,Projects,Red Snapper Recruitment,300031456,4050,Outside IR35 Non Perm Resource,SME,835435718
BEIS,The Insolvency Service,31/08/2021,Projects,Projects,Red Snapper Recruitment,300031457,3300,Outside IR35 Non Perm Resource,SME,835435718
BEIS,The Insolvency Service,31/08/2021,Projects,Projects,Red Snapper Recruitment,300031458,4050,Outside IR35 Non Perm Resource,SME,835435718
BEIS,The Insolvency Service,31/08/2021,Projects,Projects,Red Snapper Recruitment,300031459,4050,Outside IR35 Non Perm Resource,SME,835435718
BEIS,The Insolvency Service,31/08/2021,Projects,Projects,Red Snapper Recruitment,300031460,3300,Outside IR35 Non Perm Resource,SME,835435718
BEIS,The Insolvency Service,31/08/2021,Projects,Projects,Red Snapper Recruitment,300031461,3300,Outside IR35 Non Perm Resource,SME,835435718
BEIS,The Insolvency Service,31/08/2021,Projects,Projects,Red Snapper Recruitment,300031462,3300,Outside IR35 Non Perm Resource,SME,835435718
BEIS,The Insolvency Service,31/08/2021,BSD - RPS,Business Service Division,Randstad Solutions Ltd,300031282,2117.22,Agency Staff & Contractor Costs,Large,492435726
